Cogmind - Beta 13 @@@ ROGUE MODE // 2024.03.10 @ 03:02:50 Player: Mogwok Wargfriend Result: Destroyed by as-48131 with Assembled Rifle Performance ------------- Evolutions (1) 500 Regions Visited (3) 600 Robots Destroyed (28) 140 Value Destroyed (578) 578 Prototype IDs (0) 0 Alien Tech Used (0) 0 Bonus (0) 0 TOTAL SCORE: 1818 Bonus ------- None Cogmind --------- Core Integrity 0/400 Matter 276/300 Energy 98/100 System Corruption 5% Temperature Cool (0) Movement Core (50) Location -9/Mines Parts ------- > --- POWER (1) -------- (None) > --- PROPULSION (3) --- (None) > --- UTILITY (3) ------ (None) > --- WEAPON (2) ------- (None) > --- INVENTORY (5) ---- Ion Engine Faulty Heavy Ion Engine Aluminum Leg Aluminum Leg Signal Interpreter Peak State ------------ > --- POWER ------------ Improved Ion Engine > --- PROPULSION ------- Aluminum Leg Aluminum Leg Aluminum Leg > --- UTILITY ---------- Small Storage Unit Visual Processing Unit Hacking Suite > --- WEAPON ----------- Light Assault Rifle Rocket Launcher > --- INVENTORY -------- Ion Engine Aluminum Leg Aluminum Leg Signal Interpreter Particle Gun [Rating: 14] Favorites ----------- Power Ion Engine Engine Ion Engine Propulsion Aluminum Leg Leg Aluminum Leg Utility Small Storage Unit Storage Small Storage Unit Processor Visual Processing Unit Hackware Hacking Suite Weapon Light Assault Rifle Energy Gun EM Pulse Gun Ballistic Gun Light Assault Rifle Launcher Rocket Launcher Build | -11 -10 -9 -9 ------- Run | Yrd Mat Mat Min Slots Evolved 2 | . . 2 . Power . | . . . . Propulsion 1 | . . 1 . Utility 1 | . . 1 . Weapon . | . . . . Parts Attached 19 | 6 8 5 . Power 3 | 1 1 1 . Engine 3 | 1 1 1 . Core . | . . . . Reactor . | . . . . Propulsion 5 | 2 2 1 . Treads . | . . . . Leg 5 | 2 2 1 . Wheel . | . . . . Hover . | . . . . Flight . | . . . . Utility 3 | 1 1 1 . Device . | . . . . Storage 1 | 1 . . . Processor 1 | . 1 . . Hackware 1 | . . 1 . Protection . | . . . . Artifact . | . . . . Weapon 8 | 2 4 2 . Energy Gun 6 | 1 4 1 . Energy Cannon . | . . . . Ballistic Gun 1 | 1 . . . Ballistic Cannon . | . . . . Launcher 1 | . . 1 . Special Weapon . | . . . . Impact Weapon . | . . . . Slashing Weapon . | . . . . Piercing Weapon . | . . . . Special Melee Weapon . | . . . . Unidentified Prototypes . | . . . . Parts Lost 12 | . 4 4 4 Power 2 | . 1 . 1 Propulsion 1 | . . 1 . Utility 2 | . . . 2 Weapon 7 | . 3 3 1 Highest Loss Streak 6 | . 3 2 6 To Critical Strikes . | . . . . Average Slot Usage (%) 92 | . 95 96 24 Engine 12 | . 13 11 5 Leg 27 | . 28 30 . Storage 12 | . 14 11 5 Processor 10 | . 10 11 5 Hackware 3 | . . 11 8 Energy Gun 10 | . 13 3 . Ballistic Gun 12 | . 14 10 . Launcher 2 | . . 7 . Naked Turns 7 | . . . 7 Heaviest Build 17 | 12 14 17 15 Greatest Support 30 | 20 20 30 3 Greatest Overweight (x) 4 | 3 . 4 4 Average Overweight (x) . | 1 . . . Largest Inventory Capacity 8 | 8 8 8 8 Average Capacity 7 | 7 8 8 6 Most Carried 8 | 8 8 6 5 Average Carried 5 | 4 6 4 5 Final Capacity 8 | 8 8 8 5 Final Carried 6 | 6 6 5 5 Class Distribution -------------------- 76% | Mutant 23% | Scavenger-Mutant Dominant Class ---------------- Mutant | -10/Materials Scavenger-Mutant | -9/Materials Mutant | -9/Mines Resources | -11 -10 -9 -9 ----------- Run | Yrd Mat Mat Min Matter Collected 497 | 240 138 119 . Remotely . | . . . . Salvage Created 717 | . 446 271 . Parts 53 | . 32 21 . Haulers Intercepted . | . . . . Recyclers Shooed . | . . . . Parts Field Recycled . | . . . . Retrieved Matter . | . . . . Parts Self-Destructed . | . . . . Prevented . | . . . . Kills | -11 -10 -9 -9 ------- Run | Yrd Mat Mat Min Combat Hostiles Destroyed 16 | . 12 4 . Guns 12 | . 10 2 . AOE 4 | . 2 2 . Classes Destroyed 8 | . 4 4 . Worker 1 | . . 1 . Builder 4 | . . 4 . Recycler 2 | . . 2 . Operator 2 | . 2 . . Watcher 3 | . 2 1 . Swarmer 6 | . 6 . . Grunt 8 | . 6 2 . Sentry 2 | . . 2 . Best Kill Streak 7 | . 4 7 . Combat Bots Only 3 | . 3 2 . Max Kills in Single Turn 5 | . 2 5 . Gunslinging 1 | . 1 . . Exploded 2 | . 1 2 . Melee . | . . . . Uniques/NPCs Destroyed . | . . . . Combat | -11 -10 -9 -9 -------- Run | Yrd Mat Mat Min Hostile Shots Fired 174 | . 91 45 38 Missed 59 | . 24 20 15 Damage Taken 1588 | . 761 392 435 Core 585 | . 174 48 363 Absorbed by Shields . | . . . . Core Remaining (%) 65 | 100 30 . . Volleys Fired 73 | . 56 17 . Largest 2 | . 2 2 . Hottest 85 | . 65 85 . Shots Fired 143 | . 112 31 . Gun 133 | . 112 21 . Cannon . | . . . . Launcher 10 | . . 10 . Special . | . . . . Kinetic 72 | . 56 16 . Thermal 5 | . . 5 . Explosive 10 | . . 10 . Electromagnetic 56 | . 56 . . Robot Hit Streak 10 | . 10 6 . Robot Miss Streak 9 | . 9 1 . Penetration Max . | . . . . Secondary Targets 3 | . 3 . . Max Gunslinging Chain 1 | . 1 . . Shots Hit Robots 82 | . 62 20 . Core Hits 42 | . 25 17 . Critical Kills . | . . . . Critical Parts Destroyed 1 | . 1 . . Critical Strikes 3 | . 3 . . Destroy 1 | . 1 . . Corrupt 2 | . 2 . . Melee Attacks . | . . . . Impact . | . . . . Slashing . | . . . . Piercing . | . . . . Sneak Attacks . | . . . . Combat Hostiles . | . . . . Follow-up Attacks . | . . . . Damage Inflicted 1644 | . 868 776 . Guns 856 | . 720 136 . Cannons . | . . . . Explosions 785 | . 145 640 . Melee . | . . . . Ramming 3 | . 3 . . Kinetic 336 | . 249 87 . Thermal 194 | . 145 49 . Explosive 640 | . . 640 . Electromagnetic 471 | . 471 . . Impact . | . . . . Slashing . | . . . . Piercing . | . . . . Highest Corruption 5 | . . 1 5 Average Corruption 1 | . . 1 1 Corruption Purged . | . . . . Corruption Blocked . | . . . . Effects 5 | . . 4 1 Message Errors 2 | . . 1 1 Matter Fused 1 | . . 1 . Parts Rejected 2 | . . 2 . Overload Shots . | . . . . Overflow Damage 10 | . . 10 . Projectiles . | . . . . Explosions 10 | . . 10 . Melee . | . . . . Knockbacks . | . . . . Impact . | . . . . Kinetic . | . . . . Secondary . | . . . . Self-Inflicted Damage 61 | . 23 38 . Shots 2 | . 1 1 . Rammed . | . . . . Targets Rammed 2 | . 2 . . Kicked 2 | . 2 . . Crushed . | . . . . Highest Temperature 168 | . 168 59 . Average Temperature 39 | . 44 20 . Received Heat Transfer 501 | . 309 192 . Siege Activations . | . . . . Robots Corrupted . | . . . . Combat Hostiles . | . . . . Parts Fried . | . . . . Impact Corruptions . | . . . . Robots Melted . | . . . . Combat Hostiles . | . . . . Parts Melted . | . . . . Heat Transferred 211 | . 100 111 . Parts Sabotaged . | . . . . Parts Stolen . | . . . . Parts Stripped . | . . . . Power Chain Reactions 2 | . 2 . . Alert | -11 -10 -9 -9 ------- Run | Yrd Mat Mat Min Peak Influence 393 | . 393 390 144 Initial 144 | . . 121 144 Average 186 | . 183 258 124 Maximum Alert Level 1 | . 1 1 . Low Security (%) 49 | 100 40 48 100 Level 1 50 | . 59 51 . Level 2 . | . . . . Level 3 . | . . . . Level 4 . | . . . . Level 5 . | . . . . High Security . | . . . . Max Security . | . . . . Squads Dispatched 3 | . 1 2 . Investigation 1 | . . 1 . Extermination . | . . . . Reinforcement 2 | . 1 1 . Assault . | . . . . Garrison . | . . . . Intercept . | . . . . Searches Triggered . | . . . . Construction Impeded . | . . . . Haulers Reinforced . | . . . . Active Scanning Responses . | . . . . Cargo Convoy Interrupts . | . . . . Stealth | -11 -10 -9 -9 --------- Run | Yrd Mat Mat Min Distress Signals 3 | . 1 2 . Communications Jammed . | . . . . Distress Signals . | . . . . Times Spotted 60 | . 22 15 23 Peak Tracking Total 21 | . 3 7 21 Tactical Retreats 3 | . 2 . 1 Traps | -11 -10 -9 -9 ------- Run | Yrd Mat Mat Min Traps Triggered . | . . . . Indirectly . | . . . . Trap Hack Attempts . | . . . . Triggered . | . . . . Disarmed . | . . . . Reprogrammed . | . . . . Reused . | . . . . Traps Extracted . | . . . . Installed . | . . . . Triggered 1 | . 1 . . Machines | -11 -10 -9 -9 ---------- Run | Yrd Mat Mat Min Machines Disabled 3 | . 2 1 . Max in Single Turn 2 | . 2 1 . Machines Repaired . | . . . . Machines Dismantled . | . . . . Machines Sabotaged . | . . . . Overloaded Fab Kills . | . . . . Hacking | -11 -10 -9 -9 --------- Run | Yrd Mat Mat Min Machines Accessed 7 | . 4 3 . Terminals 7 | . 4 3 . Fabricators . | . . . . Repair Stations . | . . . . Recycling Units . | . . . . Scanalyzers . | . . . . Garrison Access . | . . . . Total Hacks 24 | . 12 12 . Successful 8 | . 4 4 . Failed 16 | . 8 8 . Catastrophic 1 | . . 1 . Database Lockouts . | . . . . Manual 19 | . 10 9 . Terminals 24 | . 12 12 . Fabricators . | . . . . Repair Stations . | . . . . Recycling Units . | . . . . Scanalyzers . | . . . . Garrison Access . | . . . . Terminal Hacks 4 | . 2 2 . Robot Analysis 2 | . 2 . . Alert Level 1 | . . 1 . Locate Traps 1 | . . 1 . Fabricator Hacks . | . . . . Repair Station Hacks . | . . . . Recycling Unit Hacks . | . . . . Scanalyzer . | . . . . Garrison Access Hacks . | . . . . Unauthorized Hacks 4 | . 2 2 . Terminals 4 | . 2 2 . Assimilate 4 | . 2 2 . Fabricators . | . . . . Repair Stations . | . . . . Recycling Units . | . . . . Scanalyzers . | . . . . Garrison Access . | . . . . Data Cores Recovered . | . . . . Used . | . . . . Hacking Detections 7 | . 4 3 . Full Trace Events 2 | . 1 1 . Feedback Events 1 | . . 1 . Corruption 1 | . . 1 . Feedback Blocked . | . . . . Robot Schematics Acquired . | . . . . Robots Built . | . . . . Authchips . | . . . . Time . | . . . . Total Robot Build Rating . | . . . . Part Schematics Acquired . | . . . . Parts Built . | . . . . Authchips . | . . . . Time . | . . . . Total Part Build Rating . | . . . . Parts Repaired . | . . . . Time . | . . . . Parts Recycled . | . . . . Recycled Matter . | . . . . Retrieved Matter . | . . . . Retrieved Components . | . . . . Parts Scanalyzed . | . . . . Part Schematics Acquired . | . . . . Parts Damaged . | . . . . Bothacking | -11 -10 -9 -9 ------------ Run | Yrd Mat Mat Min Used RIF Installer . | . . . . Robots Hacked . | . . . . Non-combat . | . . . . Combat . | . . . . Robot Hacks Applied . | . . . . Relay Couplers Released . | . . . . Fabnet Peak Effective % . | . . . . Robots Rewired . | . . . . Allies Hacked . | . . . . Hacks Repelled . | . . . . Allies | -11 -10 -9 -9 -------- Run | Yrd Mat Mat Min Total Allies . | . . . . Largest Group . | . . . . Highest-Rated Group . | . . . . Highest-Rated Ally . | . . . . Total Orders . | . . . . Ally Attacks . | . . . . Total Damage . | . . . . Kills . | . . . . Allies Corrupted . | . . . . Allies Melted . | . . . . Intel | -11 -10 -9 -9 ------- Run | Yrd Mat Mat Min Robot Analysis Total 2 | . 2 . . Derelict Logs Recovered . | . . . . Drone Launches . | . . . . Drone Recoveries . | . . . . Exploration | -11 -10 -9 -9 ------------- Run | Yrd Mat Mat Min Turns Passed 942 | 70 581 248 43 Spaces Moved 548 | 40 313 150 45 Core 75 | 28 . 2 45 Treads . | . . . . Legs 473 | 12 313 148 . Wheels . | . . . . Hover . | . . . . Flight . | . . . . Fastest Speed 50 | 50 120 120 50 Average Speed 119 | 137 120 123 87 Slowest Speed 250 | 200 120 250 250 Overloaded Moves . | . . . . Propulsion Burnouts . | . . . . Robots Hopped . | . . . . Cave-ins Triggered . | . . . . Exploration Rate (%) 21 | 3 40 29 13 Regions Visited 3 Branch Regions 1 Pre-discovered Areas . | . . . . Known Exits Taken . | . . . . Unknown Exits Taken 3 | 1 1 1 . Scrap Searched . | . . . . Spaces Dug 9 | . . 9 . Terrain Destroyed 77 | . 9 68 . Melee . | . . . . Projectile . | . . . . AOE 77 | . 9 68 . Terrain Rammed . | . . . . Walls Destroyed . | . . . . Machines Disabled . | . . . . Actions | -11 -10 -9 -9 --------- Run | Yrd Mat Mat Min Total 706 | 53 418 186 49 Wait 42 | . 26 13 3 Move 545 | 39 312 149 45 Hop . | . . . . Pick Up 17 | 8 7 2 . Fast Attach 6 | 4 2 . . Attach 10 | 2 4 4 . Detach 1 | . 1 . . Swap 3 | . 2 1 . Drop 7 | . 6 . 1 Fire 73 | . 56 17 . Melee . | . . . . Ram . | . . . . Kick 2 | . 2 . . Crush . | . . . . Escape Stasis . | . . . . Rewire . | . . . . Trap . | . . . . Miscellaneous . | . . . . Route ------- -11/Scrapyard -10/Materials -9/Materials -9/Mines History --------- Turn | Location | Event 22 | -11/Scrapyard | Discovered new exit (range 16) 71 | -11/Scrapyard | Entered Materials 235 | -10/Materials | Discovered new exit (range 16) 311 | -10/Materials | Build established: Mutant 562 | -10/Materials | Core integrity fell below 50% 608 | -10/Materials | Lost 3 parts (1p2w) 652 | -10/Materials | Entered another Materials area 652 | -9/Materials | Evolved 2 slots: Propulsion x1, Utility x1 892 | -9/Materials | Discovered new exit (range 5) 900 | -9/Materials | Entered Mines 901 | -9/Mines | Assembled infested the area 906 | -9/Mines | Assisted by a Guerilla fighting off Assembled 937 | -9/Mines | Core integrity fell below 50% 941 | -9/Mines | Core integrity fell below 20% 943 | -9/Mines | Destroyed by as-48131 with Assembled Rifle Last Messages --------------- payload. 00919_ D-53 Grenadier unfolds itself. 00919_ as-16935 destroyed. 00919_ Laser Drill disabled. 00921_ The unstable cave ceiling collapses. 00921_ as-95218 destroyed. 00921_ Visual Processing Unit destroyed. 00921_ Imp. Ion Engine destroyed. 00921_ as-77303 destroyed. 00921_ as-41245 destroyed. 00922_ Dropped Sml. Storage Unit. 00923_ as-86780 destroyed. 00923_ as-90025 destroyed. 00927_ D-53 Grenadier suffers critical hit (Destroy). 00927_ D-53 Grenadier destroyed. 00936_ Hacking Suite destroyed. 00936_ System corrupted by crushing effect (+4). 00936_ Knocked back. 00939_ WGRNWY,HO ITYYOE%,EHK Map ----- +----------------------------------------------------+ | ?????????????????????????????????????????????????? | | ?????????????????????????????????????????????????? | | ?????????????????????????????????????????????????? | | ?????????????????????????????????????????????????? | | ?????????????????????????????????????????????????? | | ?????????????????????????????????????????????????? | | ???????????????????????????????####??????????????? | | ??????????????????????????????## ##?????????????? | | ?????????????????????????????## #?????????????? | | ????????????????????????????## ##?????????????? | | ???????????????????????????## ##??????????????? | | ??????????????????????????## #???????????????? | | ??????????????????????????# #???????????????? | | ??????????????????????????# #???????????????? | | ??????????????????????????# #???????????????? | | ??????????????????????????# a #???????????????? | | ??????????????????????????## ##???????????????? | | ???????????????????????????##aa #????????????????? | | ???????????????????????????##aa##????????????????? | | ??????????????????????????## ##?????????????????? | | ??????????????????????????# a #??????????????????? | | ???????????????????????##?#a ####???????????? #? | | ?????????????????????### ## ####?????? #?? | | ?????????????????????# ##### ??? | | ?????????????????????# ! %a a ????? | | ??????????????????# ### @ a ????? | | ?????????????????## r= %! % ##### ????? | | ?????????????????# !! ]%= % ##### #?? | | ?????????????????# !! % #????? | | ????????????????# #?????? | | ????????????????# ##### ###### #?????? | | ????????????????# #????# #??????? #????? | | ????????????????# ?????# ##?????????#????? | | ????????????????## ?????## ##???????????????? | | ?????????????????## ???????####????????????????? | | ??????????????????## ???????????????????????????? | | ???????????????????## ???????????????????????????? | | ????????????????????#????????????????????????????? | | ?????????????????????????????????????????????????? | | ?????????????????????????????????????????????????? | | | | | | | | | | | | | | | | | | | | | +----------------------------------------------------+ Best States ------------- Heat Dissipation 28 Energy Generation 12 Energy Capacity 265 Matter Stores 300 Matter Capacity 300 Sight Range 18 Terrain Scan Density 10 Evasion (%) 55 Offensive Hacking 10 Item Schematics ----------------- None Robot Schematics ------------------ None Fabricated ------------ Nothing Alien Tech Used ----------------- None Achievements -------------- None Challenges ------------ None Game ------ Seed AnalysisLongswordTerrabomb Manual? 0 Play Time 00:11:08 Cumulative 82.5 hours Start 2024.03.09 @ 15:43:18 End 2024.03.10 @ 03:02:50 Sessions 2 Manual Loads 0 Difficulty Rogue Special Mode None Game No. 86 Rogue 86 Adventurer 0 Explorer 0 Win Type - Total 0 Types 0/0/0/0/0/0/0/0/0 Lore% 33 Gallery% 47 Achievement% 32 Wizard Run 0 Options --------- Layout 2 ASCII 1 Keyboard 1 Movement Numpad Keybinds 0 Fullscreen 2 Font 32/TamsynBold Map View 50x44 Zoom Use 0% Tactical HUD 1 Map Filters NONE Filters NONE Steam 1 RUN: 2b148be9-18fc-4924-b08b-f8bb71bd79db